fUSD/lending_fUSD_20250426
["ID","MTS","AMOUNT","RATE_DAILY","PERIOD"]
[359077331,1745697041249,-400.0,0.00019591,2]
[359077332,1745697041258,-400.0,0.00019591,2]
[359077333,1745697041268,-400.0,0.00019591,2]
[359077334,1745697041277,-471.13,0.00019591,2]
[359077335,1745697041286,-491.22,0.00019591,2]
[359077336,1745697041296,-400.0,0.00019591,2]
[359077337,1745697041306,-632.06,0.00019591,2]
[359077338,1745697041315,-400.0,0.00019591,2]
[359077339,1745697041324,-400.0,0.00019591,2]
[359077340,1745697041334,-643.63,0.00019591,2]
[359077341,1745697041343,-404.58,0.00019591,2]
[359077342,1745697041352,-3372.3,0.00019591,2]
[359077343,1745697041362,-617.27,0.00019591,2]
[359077344,1745697041371,-459.48,0.00019591,2]
[359077345,1745697041380,-400.0,0.00019591,2]
[359077346,1745697041389,-633.72,0.00019591,2]
[359077347,1745697041399,-400.0,0.00019591,2]
[359077348,1745697041411,-400.0,0.00019591,2]
[359077349,1745697041421,-652.48,0.00019591,2]
[359077350,1745697041431,-182.31663774,0.00019591,2]
[359077351,1745697041463,-217.68336226,0.00019591,2]
[359077352,1745697041473,-503.09,0.00019591,2]
[359077353,1745697041484,-672.34,0.00019591,2]
[359077354,1745697041498,-716.38,0.00019591,2]
[359077355,1745697041508,-400.0,0.00019591,2]
[359077356,1745697041517,-400.0,0.00019591,2]
[359077357,1745697041526,-436.45,0.00019591,2]
[359077358,1745697041537,-400.0,0.00019591,2]
[359077359,1745697041546,-400.0,0.00019591,2]
[359077360,1745697041555,-449.68436955,0.00019591,2]
[359077361,1745697041565,-400.0,0.00019591,2]
[359077362,1745697041575,-400.0,0.00019591,2]
[359077363,1745697041584,-400.0,0.00019591,2]
[359077364,1745697041594,-536.14,0.00019591,2]
[359077365,1745697041604,-400.0,0.00019591,2]
[359077366,1745697041615,-400.0,0.00019591,2]
[359077367,1745697041627,-400.0,0.00019591,2]
[359077368,1745697041638,-400.0,0.00019591,2]
[359077369,1745697041648,-429.76,0.00019591,2]
[359077370,1745697041659,-400.0,0.00019591,2]
[359077371,1745697041669,-400.0,0.00019591,2]
[359077372,1745697041679,-695.88,0.00019591,2]
[359077373,1745697041690,-400.0,0.00019591,2]
[359077374,1745697041699,-400.0,0.00019591,2]
[359077375,1745697041709,-400.0,0.00019591,2]
[359077376,1745697041718,-400.0,0.00019591,2]
[359077377,1745697041728,-400.0,0.00019591,2]
[359077378,1745697041739,-400.0,0.00019591,2]
[359077379,1745697041748,-589.82,0.00019591,2]
[359077380,1745697041757,-400.0,0.00019591,2]
[359077381,1745697041766,-400.0,0.00019591,2]
[359077382,1745697041776,-400.0,0.00019591,2]
[359077383,1745697041785,-400.0,0.00019591,2]
[359077384,1745697041794,-400.0,0.00019591,2]
[359077385,1745697041804,-400.0,0.00019591,2]
[359077386,1745697041813,-400.0,0.00019591,2]
[359077387,1745697041823,-400.0,0.00019591,2]
[359077388,1745697041832,-400.0,0.00019591,2]
[359077389,1745697041841,-1811.68,0.00019591,2]
[359077390,1745697041851,-400.0,0.00019591,2]
[359077391,1745697041860,-608.01,0.00019591,2]
[359077392,1745697041869,-400.0,0.00019591,2]
[359077393,1745697041879,-691.61,0.00019591,2]
[359077394,1745697041888,-400.0,0.00019591,2]
[359077395,1745697041897,-400.0,0.00019591,2]
[359077396,1745697041907,-799.6,0.00019591,2]
[359077397,1745697041916,-634.53,0.00019591,2]
[359077398,1745697041926,-400.0,0.00019591,2]
[359077399,1745697041935,-400.0,0.00019591,2]
[359077400,1745697041946,-474.69,0.00019591,2]
[359077401,1745697041955,-400.0,0.00019591,2]
[359077402,1745697041964,-400.0,0.00019591,2]
[359077403,1745697041974,-406.23,0.00019591,2]
[359077404,1745697041984,-400.0,0.00019591,2]
[359077405,1745697041993,-400.0,0.00019591,2]
[359077406,1745697042003,-400.0,0.00019591,2]
[359077407,1745697042012,-400.0,0.00019591,2]
[359077408,1745697042021,-400.0,0.00019591,2]
[359077409,1745697042031,-400.0,0.00019591,2]
[359077410,1745697042041,-400.0,0.00019591,2]
[359077411,1745697042050,-400.0,0.00019591,2]
[359077412,1745697042059,-400.0,0.00019591,2]
[359077413,1745697042071,-400.0,0.00019591,2]
[359077414,1745697042081,-400.0,0.00019591,2]
[359077415,1745697042090,-450.95,0.00019591,2]
[359077416,1745697042100,-400.0,0.00019591,2]
[359077417,1745697042110,-400.0,0.00019591,2]
[359077418,1745697042119,-423.48,0.00019591,2]
[359077419,1745697042128,-400.0,0.00019591,2]
[359077420,1745697042138,-489.66,0.00019591,2]
[359077421,1745697042148,-459.36846511,0.00019591,2]
[359077422,1745697042158,-550.66,0.00019591,2]
[359077423,1745697042168,-662.8,0.00019591,2]
[359077424,1745697042177,-400.0,0.00019591,2]
[359077425,1745697042187,-400.0,0.00019591,2]
[359077426,1745697042196,-400.0,0.00019591,2]
[359077427,1745697042206,-715.48,0.00019591,2]
[359077428,1745697042216,-400.0,0.00019591,2]
[359077429,1745697042226,-400.0,0.00019591,2]
[359077430,1745697042236,-400.0,0.00019591,2]
[359077431,1745697042245,-417.76,0.00019591,2]
[359077432,1745697042254,-2119.68,0.00019591,2]
[359077433,1745697042264,-400.0,0.00019591,2]
[359077434,1745697042273,-500.0,0.00019591,2]
[359077435,1745697042283,-400.0,0.00019591,2]
[359077436,1745697042293,-400.0,0.00019591,2]
[359077437,1745697042303,-400.0,0.00019591,2]
[359077438,1745697042312,-433.91,0.00019591,2]
[359077439,1745697042322,-400.0,0.00019591,2]
[359077440,1745697042333,-400.0,0.00019591,2]
[359077441,1745697042343,-400.0,0.00019591,2]
[359077442,1745697042352,-400.0,0.00019591,2]
[359077443,1745697042362,-400.0,0.00019591,2]
[359077444,1745697042372,-758.73,0.00019591,2]
[359077445,1745697042381,-400.0,0.00019591,2]
[359077446,1745697042391,-400.0,0.00019591,2]
[359077447,1745697042401,-400.0,0.00019591,2]
[359077448,1745697042410,-538.86,0.00019591,2]
[359077449,1745697042419,-500.0,0.00019591,2]
[359077451,1745697042428,-400.0,0.00019591,2]
[359077452,1745697042437,-400.0,0.00019591,2]
[359077453,1745697042446,-872.59,0.00019591,2]
[359077454,1745697042456,-400.0,0.00019591,2]
[359077455,1745697042465,-400.0,0.00019591,2]
[359077456,1745697042474,-839.99,0.00019591,2]
[359077457,1745697042484,-400.0,0.00019591,2]
[359077458,1745697042497,-400.0,0.00019591,2]
[359077459,1745697042506,-400.0,0.00019591,2]
[359077461,1745697042516,-945.94,0.00019591,2]
[359077463,1745697042526,-400.0,0.00019591,2]
[359077464,1745697042535,-400.0,0.00019591,2]
[359077466,1745697042544,-400.0,0.00019591,2]
[359077467,1745697042554,-400.81,0.00019591,2]
[359077470,1745697042563,-400.0,0.00019591,2]
[359077473,1745697042574,-741.77,0.00019591,2]
[359077476,1745697042583,-400.0,0.00019591,2]
[359077478,1745697042593,-400.0,0.00019591,2]
[359077480,1745697042603,-400.0,0.00019591,2]
[359077481,1745697042613,-718.92,0.00019591,2]
[359077482,1745697042624,-400.0,0.00019591,2]
[359077483,1745697042634,-711.36,0.00019591,2]
[359077484,1745697042644,-400.0,0.00019591,2]
[359077485,1745697042654,-400.0,0.00019591,2]
[359077486,1745697042663,-400.0,0.00019591,2]
[359077487,1745697042673,-500.0,0.00019591,2]
[359077488,1745697042682,-400.0,0.00019591,2]
[359077489,1745697042692,-400.0,0.00019591,2]
[359077490,1745697042701,-400.0,0.00019591,2]
[359077491,1745697042710,-400.0,0.00019591,2]
[359077492,1745697042720,-400.0,0.00019591,2]
[359077493,1745697042729,-390.54469982,0.00019591,2]
[359077494,1745697042738,-469.7,0.00019591,2]
[359077495,1745697042747,-400.0,0.00019591,2]
[359077496,1745697042757,-428.92,0.00019591,2]
[359077497,1745697042766,-400.0,0.00019591,2]
[359077498,1745697042775,-666.86,0.00019591,2]
[359077499,1745697042785,-532.51255439,0.00019591,2]
[359077500,1745697042794,-416.13,0.00019591,2]
[359077501,1745697042804,-400.0,0.00019591,2]
[359077502,1745697042814,-672.0,0.00019591,2]
[359077503,1745697042823,-400.0,0.00019591,2]
[359077504,1745697042833,-564.75,0.00019591,2]
[359077505,1745697042842,-400.0,0.00019591,2]
[359077506,1745697042851,-813.4,0.00019591,2]
[359077507,1745697042861,-400.0,0.00019591,2]
[359077508,1745697042870,-400.0,0.00019591,2]
[359077509,1745697042879,-623.5,0.00019591,2]
[359077510,1745697042889,-529.82,0.00019591,2]
[359077511,1745697042899,-200.0,0.00019591,2]
[359077512,1745697042908,-400.0,0.00019591,2]
[359077513,1745697042917,-807.47,0.00019591,2]
[359077514,1745697042927,-400.0,0.00019591,2]
[359077515,1745697042936,-400.0,0.00019591,2]
[359077516,1745697042946,-500.0,0.00019592,2]
[359077518,1745697042955,-500.0,0.00019592,2]
[359077520,1745697042965,-1138.0,0.00019618,2]
[359077522,1745697042975,-150.0,0.00019618,2]
[359077524,1745697042984,-571.46356769,0.00019619,2]
[359077526,1745697042994,-5161.95681036,0.00019627,2]
[359077528,1745697043004,-1138.0,0.00019646,2]
[359077530,1745697043013,-289.28931,0.00019646,2]
[359077532,1745697043023,-5563.8794784,0.00019672,2]
[359077535,1745697043032,-5161.95681036,0.00019672,2]
[359077537,1745697043042,-1138.0,0.00019673,2]
[359077539,1745697043052,-151.0,0.00019684,2]
[359077541,1745697043062,-151.0,0.00019685,2]
[359077543,1745697043072,-151.0,0.00019685,2]
[359077545,1745697043081,-151.0,0.00019685,2]
[359077547,1745697043091,-151.0,0.00019685,2]
[359077548,1745697043100,-151.0,0.00019686,2]
[359077550,1745697043110,-151.0,0.00019686,2]
[359077552,1745697043119,-151.0,0.00019686,2]
[359077554,1745697043128,-151.0,0.00019686,2]
[359077556,1745697043139,-151.0,0.00019686,2]
[359077558,1745697043149,-1138.0,0.00019701,2]
[359077561,1745697043159,-9827.57706772,0.00019712,2]
[359077563,1745697043169,-5563.8794784,0.00019718,2]
[359077565,1745697043178,-5161.95681036,0.00019718,2]
[359077567,1745697043188,-150.0,0.00019727,2]
[359077569,1745697043198,-1138.0,0.00019728,2]
[359077571,1745697043208,-9597.29654204,0.00019729,2]
[359077573,1745697043218,-9827.57706772,0.00019732,2]
[359077575,1745697043228,-9597.29654204,0.00019745,2]
[359077576,1745697043237,-1138.0,0.00019755,2]
[359077577,1745697043247,-5563.8794784,0.00019763,2]
[359077578,1745697043257,-5161.95681036,0.00019763,2]
[359077579,1745697043267,-158.90007297,0.00019764,2]
[359077580,1745697043276,-175.21320296,0.00019765,2]
[359077581,1745697043285,-571.46356769,0.00019774,2]
[359077582,1745697043295,-685.27295159,0.00019778,2]
[359077583,1745697043304,-150.0,0.00019779,2]
[359077584,1745697043313,-1138.0,0.00019783,2]
[359077585,1745697043322,-500.0,0.00019796,2]
[359077586,1745697043332,-281.6140029,0.00019799,2]
[359077587,1745697043341,-500.0,0.00019799,2]
[359077588,1745697043350,-500.0,0.00019799,2]
[359077589,1745697043360,-445.25921698,0.00019799,2]
[359077590,1745697043369,-5563.8794784,0.00019809,2]
[359077591,1745697043379,-5161.95681036,0.00019809,2]
[359077592,1745697043389,-296.50466061,0.0001981,2]
[359077593,1745697043398,-1138.0,0.0001981,2]
[359077594,1745697043408,-1138.0,0.00019838,2]
[359077595,1745697043418,-5563.8794784,0.00019854,2]
[359077596,1745697043427,-5161.95681036,0.00019854,2]
[359077597,1745697043436,-330.98653256,0.00019855,2]
[359077598,1745697043446,-150.0,0.0001986,2]
[359077599,1745697043455,-400.0,0.00019863,2]
[359077600,1745697043465,-400.0,0.00019863,2]
[359077601,1745697043475,-400.0,0.00019863,2]
[359077602,1745697043488,-400.0,0.00019863,2]
[359077603,1745697043498,-768.31,0.00019863,2]
[359077604,1745697043507,-400.0,0.00019863,2]
[359077605,1745697043516,-566.52,0.00019863,2]
[359077606,1745697043526,-400.0,0.00019863,2]
[359077607,1745697043535,-400.0,0.00019863,2]
[359077608,1745697043546,-400.0,0.00019863,2]
[359077609,1745697043555,-654.12,0.00019863,2]
[359077610,1745697043564,-400.0,0.00019863,2]
[359077611,1745697043574,-400.0,0.00019863,2]
[359077612,1745697043584,-451.81,0.00019863,2]
[359077613,1745697043594,-8633.568696,0.00019863,2]
[359077614,1745697043605,-400.0,0.00019863,2]
[359077615,1745697043614,-250.0,0.00019863,2]
[359077616,1745697043623,-460.19,0.00019863,2]
[359077617,1745697043633,-424.07058968,0.00019863,2]
[359077618,1745697043643,-2400.56,0.00019863,2]
[359077619,1745697043653,-530.17,0.00019863,2]
[359077620,1745697043663,-400.0,0.00019863,2]
[359077621,1745697043672,-400.0,0.00019863,2]
[359077622,1745697043681,-300.0,0.00019863,2]
[359077623,1745697043691,-443.4,0.00019863,2]
[359077624,1745697043701,-400.0,0.00019863,2]
[359077625,1745697043710,-400.0,0.00019863,2]
[359077626,1745697043719,-400.0,0.00019863,2]
[359077627,1745697043729,-772.36,0.00019863,2]
[359077628,1745697043738,-400.0,0.00019863,2]
[359077629,1745697043747,-445.51,0.00019863,2]
[359077630,1745697043757,-616.14,0.00019863,2]
[359077631,1745697043766,-400.0,0.00019863,2]
[359077632,1745697043776,-400.0,0.00019863,2]
[359077633,1745697043785,-995.05,0.00019863,2]
[359077634,1745697043795,-2891.33,0.00019863,2]
[359077635,1745697043804,-400.0,0.00019863,2]
[359077636,1745697043813,-528.03,0.00019863,2]
[359077637,1745697043822,-400.0,0.00019863,2]
[359077638,1745697043832,-400.0,0.00019863,2]
[359077639,1745697043841,-400.0,0.00019863,2]
[359077640,1745697043851,-471.15,0.00019863,2]
[359077641,1745697043860,-802.64,0.00019863,2]
[359077642,1745697043870,-400.0,0.00019863,2]
[359077643,1745697043880,-711.52,0.00019863,2]
[359077644,1745697043890,-400.0,0.00019863,2]
[359077645,1745697043900,-400.0,0.00019863,2]
[359077646,1745697043910,-400.0,0.00019863,2]
[359077647,1745697043919,-284.2790831,0.00019863,2]
[359077648,1745697043930,-400.0,0.00019863,2]
[359077649,1745697043940,-403.34,0.00019863,2]
[359077650,1745697043950,-522.72,0.00019863,2]
[359077651,1745697043960,-400.0,0.00019863,2]
[359077652,1745697043969,-482.25,0.00019863,2]
[359077653,1745697043979,-400.0,0.00019863,2]
[359077654,1745697043988,-400.0,0.00019863,2]
[359077655,1745697043998,-400.0,0.00019863,2]
[359077656,1745697044008,-400.0,0.00019863,2]
[359077657,1745697044017,-631.49,0.00019863,2]
[359077658,1745697044027,-400.0,0.00019863,2]
[359077659,1745697044036,-400.0,0.00019863,2]
[359077660,1745697044046,-400.0,0.00019863,2]
[359077661,1745697044056,-400.0,0.00019863,2]
[359077662,1745697044065,-663.16,0.00019863,2]
[359077663,1745697044074,-570.14,0.00019863,2]
[359077664,1745697044084,-400.0,0.00019863,2]
[359077665,1745697044094,-400.0,0.00019863,2]
[359077666,1745697044104,-623.49,0.00019863,2]
[359077667,1745697044114,-400.0,0.00019863,2]
[359077668,1745697044123,-400.0,0.00019863,2]
[359077669,1745697044133,-400.0,0.00019863,2]
[359077670,1745697044143,-400.0,0.00019863,2]
[359077671,1745697044153,-771.03,0.00019863,2]
[359077672,1745697044163,-791.82,0.00019863,2]
[359077673,1745697044174,-669.62,0.00019863,2]
[359077674,1745697044184,-400.0,0.00019863,2]
[359077675,1745697044194,-400.0,0.00019863,2]
[359077676,1745697044205,-981.76,0.00019863,2]
[359077677,1745697044214,-400.0,0.00019863,2]
[359077678,1745697044225,-215.10822043,0.00019863,2]
[359077679,1745697044234,-499.4,0.00019863,2]
[359077680,1745697044243,-667.08,0.00019863,2]
[359077681,1745697044253,-625.29,0.00019863,2]
[359077682,1745697044262,-441.93,0.00019863,2]
[359077683,1745697044271,-300.0,0.00019863,2]
[359077684,1745697044281,-434.62,0.00019863,2]
[359077685,1745697044290,-609.3,0.00019863,2]
[359077686,1745697044300,-639.88,0.00019863,2]
[359077687,1745697044310,-520.36,0.00019863,2]
[359077688,1745697044320,-7016.18,0.00019863,2]
[359077689,1745697044330,-1064.41,0.00019863,2]
[359077690,1745697044340,-400.0,0.00019863,2]
[359077691,1745697044350,-400.0,0.00019863,2]
[359077692,1745697044360,-640.14,0.00019863,2]
[359077693,1745697044369,-400.0,0.00019863,2]
[359077694,1745697044379,-572.22,0.00019863,2]
[359077695,1745697044390,-524.67,0.00019863,2]
[359077696,1745697044399,-502.42,0.00019863,2]
[359077697,1745697044408,-400.0,0.00019863,2]
[359077698,1745697044418,-400.0,0.00019863,2]
[359077699,1745697044427,-400.0,0.00019863,2]
[359077700,1745697044437,-582.74,0.00019863,2]
[359077701,1745697044447,-400.0,0.00019863,2]
[359077702,1745697044456,-466.34,0.00019863,2]
[359077703,1745697044466,-152.92410578,0.00019863,2]
[359077704,1745697044477,-400.0,0.00019863,2]
[359077705,1745697044488,-751.58,0.00019863,2]
[359077706,1745697044499,-400.0,0.00019863,2]
[359077707,1745697044510,-400.0,0.00019863,2]
[359077708,1745697044521,-1028.08,0.00019863,2]
[359077709,1745697044532,-648.78,0.00019863,2]
[359077710,1745697044543,-573.46,0.00019863,2]
[359077711,1745697044553,-400.0,0.00019863,2]
[359077712,1745697044564,-799.61,0.00019863,2]
[359077713,1745697044574,-400.0,0.00019863,2]
[359077714,1745697044585,-416.22,0.00019863,2]
[359077715,1745697044594,-483.26,0.00019863,2]
[359077716,1745697044604,-404.01,0.00019863,2]
[359077717,1745697044613,-418.83,0.00019863,2]
[359077718,1745697044623,-400.0,0.00019863,2]
[359077719,1745697044632,-456.19630339,0.00019864,2]
[359077720,1745697044643,-400.0,0.00019864,2]
[359077721,1745697044652,-400.0,0.00019864,2]
[359077722,1745697044661,-152.27423064,0.00019864,2]
[359077723,1745697044671,-400.0,0.00019864,2]
[359077724,1745697044680,-417.2770848,0.00019864,2]
[359077725,1745697044691,-400.0,0.00019864,2]
[359077726,1745697044701,-796.44,0.00019864,2]
[359077727,1745697044711,-417.54,0.00019864,2]
[359077728,1745697044721,-400.0,0.00019864,2]
[359077729,1745697044732,-400.0,0.00019864,2]
[359077730,1745697044741,-532.76,0.00019864,2]
[359077731,1745697044752,-400.0,0.00019864,2]
[359077732,1745697044762,-400.0,0.00019864,2]
[359077733,1745697044772,-400.0,0.00019864,2]
[359077734,1745697044782,-467.25524624,0.00019864,2]
[359077735,1745697044791,-400.0,0.00019864,2]
[359077736,1745697044801,-400.0,0.00019864,2]
[359077737,1745697044810,-1275.62,0.00019864,2]
[359077738,1745697044820,-400.0,0.00019864,2]
[359077739,1745697044830,-484.88,0.00019864,2]
[359077740,1745697044840,-636.81,0.00019864,2]
[359077741,1745697044849,-400.0,0.00019864,2]
[359077742,1745697044859,-465.5,0.00019864,2]
[359077743,1745697044869,-552.51,0.00019864,2]
[359077744,1745697044879,-588.8,0.00019864,2]
[359077745,1745697044888,-575.7,0.00019864,2]
[359077746,1745697044898,-523.22,0.00019864,2]
[359077747,1745697044908,-445.35,0.00019864,2]
[359077748,1745697044918,-592.37,0.00019864,2]
[359077749,1745697044927,-524.16,0.00019864,2]
[359077750,1745697044938,-418.96,0.00019864,2]
[359077751,1745697044947,-400.0,0.00019864,2]
[359077752,1745697044957,-400.0,0.00019864,2]
[359077753,1745697044967,-400.0,0.00019864,2]
[359077754,1745697044977,-669.81,0.00019864,2]
[359077755,1745697044988,-417.07,0.00019864,2]
[359077756,1745697045000,-616.45,0.00019864,2]
[359077757,1745697045010,-400.0,0.00019864,2]
[359077758,1745697045020,-465.36,0.00019864,2]
[359077759,1745697045032,-547.98,0.00019864,2]
[359077760,1745697045042,-400.0,0.00019864,2]
[359077761,1745697045052,-1070.64,0.00019864,2]
[359077762,1745697045062,-430.44,0.00019864,2]
[359077763,1745697045074,-400.0,0.00019864,2]
[359077764,1745697045084,-983.79,0.00019864,2]
[359077765,1745697045094,-495.73,0.00019864,2]
[359077766,1745697045335,-400.0,0.00019864,2]
[359077767,1745697045346,-400.0,0.00019864,2]
[359077768,1745697045356,-400.0,0.00019864,2]
[359077769,1745697045365,-400.0,0.00019864,2]
[359077770,1745697045375,-741.61,0.00019864,2]
[359077771,1745697045385,-851.14,0.00019864,2]
[359077772,1745697045395,-557.47,0.00019864,2]
[359077773,1745697045405,-400.0,0.00019864,2]
[359077774,1745697045415,-400.0,0.00019864,2]
[359077775,1745697045424,-400.0,0.00019864,2]
[359077776,1745697045433,-732.61,0.00019864,2]
[359077777,1745697045443,-493.92,0.00019864,2]
[359077778,1745697045453,-400.0,0.00019864,2]
[359077779,1745697045463,-510.14,0.00019864,2]
[359077780,1745697045474,-400.0,0.00019864,2]
[359077781,1745697045485,-400.0,0.00019864,2]
[359077782,1745697045497,-626.48,0.00019864,2]
[359077783,1745697045506,-400.0,0.00019864,2]
[359077784,1745697045516,-400.0,0.00019864,2]
[359077785,1745697045525,-432.19,0.00019864,2]
[359077786,1745697045535,-400.0,0.00019864,2]
[359077787,1745697045545,-400.0,0.00019864,2]
[359077788,1745697045555,-400.0,0.00019864,2]
[359077789,1745697045565,-756.71,0.00019864,2]
[359077790,1745697045575,-481.11,0.00019864,2]
[359077791,1745697045584,-400.0,0.00019864,2]
[359077792,1745697045594,-400.0,0.00019864,2]
[359077793,1745697045605,-575.09,0.00019864,2]
[359077794,1745697045615,-400.0,0.00019864,2]
[359077795,1745697045625,-400.0,0.00019864,2]
[359077796,1745697045634,-400.0,0.00019864,2]
[359077797,1745697045646,-400.0,0.00019864,2]
[359077798,1745697045655,-400.0,0.00019864,2]
[359077799,1745697045666,-465.21,0.00019864,2]
[359077800,1745697045676,-400.0,0.00019864,2]
[359077801,1745697045686,-511.81,0.00019864,2]
[359077802,1745697045697,-330.13450583,0.00019864,2]
[359077803,1745697045708,-4231.19,0.00019864,2]
[359077804,1745697045720,-661.08,0.00019864,2]
[359077805,1745697045729,-560.68,0.00019864,2]
[359077806,1745697045739,-645.34,0.00019864,2]
[359077807,1745697045748,-400.0,0.00019864,2]
[359077808,1745697045759,-421.15,0.00019864,2]
[359077809,1745697045769,-400.0,0.00019864,2]
[359077810,1745697045779,-815.74,0.00019864,2]
[359077811,1745697045789,-400.0,0.00019864,2]
[359077812,1745697045799,-92649.26,0.00019864,2]
[359077813,1745697045809,-655.68,0.00019864,2]
[359077814,1745697045818,-437.2,0.00019864,2]
[359077815,1745697045828,-400.0,0.00019864,2]
[359077816,1745697045838,-400.0,0.00019864,2]
[359077817,1745697045848,-517.6,0.00019864,2]
[359077818,1745697045858,-400.0,0.00019864,2]
[359077819,1745697045868,-400.0,0.00019864,2]
[359077820,1745697045879,-611.14,0.00019864,2]
[359077821,1745697045888,-400.0,0.00019864,2]
[359077822,1745697045898,-725.67,0.00019864,2]
[359077823,1745697045908,-422.45,0.00019864,2]
[359077824,1745697045919,-562.67,0.00019864,2]
[359077825,1745697045934,-407.24,0.00019864,2]
[359077826,1745697045944,-622.6,0.00019864,2]
[359077827,1745697045955,-400.0,0.00019864,2]
[359077828,1745697045966,-400.0,0.00019864,2]
[359077829,1745697045976,-916.86,0.00019864,2]
[359077830,1745697045986,-967.83,0.00019864,2]
[359077832,1745697045996,-980.78,0.00019864,2]
[359077834,1745697046007,-400.0,0.00019864,2]
[359077836,1745697046018,-400.0,0.00019864,2]
[359077837,1745697046028,-546.09,0.00019864,2]
[359077838,1745697046038,-473.51,0.00019864,2]
[359077839,1745697046049,-724.58,0.00019864,2]
[359077840,1745697046059,-568.85,0.00019864,2]
[359077841,1745697046069,-832.8,0.00019864,2]
[359077842,1745697046080,-1382.06,0.00019864,2]
[359077843,1745697046090,-400.0,0.00019864,2]
[359077844,1745697046101,-448.35,0.00019864,2]
[359077845,1745697046111,-478.2,0.00019864,2]
[359077846,1745697046122,-892.68,0.00019864,2]
[359077847,1745697046132,-400.0,0.00019864,2]
[359077848,1745697046142,-1133.2,0.00019864,2]
[359077849,1745697046152,-400.0,0.00019864,2]
[359077850,1745697046162,-1051.26,0.00019864,2]
[359077851,1745697046173,-400.0,0.00019864,2]
[359077852,1745697046182,-859.8,0.00019864,2]
[359077853,1745697046192,-1118.3,0.00019864,2]
[359077854,1745697046203,-444.84,0.00019864,2]
[359077855,1745697046214,-400.0,0.00019864,2]
[359077856,1745697046224,-654.03,0.00019864,2]
[359077857,1745697046234,-400.0,0.00019864,2]
[359077858,1745697046245,-2857.76,0.00019864,2]
[359077859,1745697046255,-631.74,0.00019864,2]
[359077860,1745697046265,-1664.59,0.00019864,2]
[359077861,1745697046276,-400.0,0.00019864,2]
[359077862,1745697046286,-498.6,0.00019864,2]
[359077863,1745697046297,-400.0,0.00019864,2]
[359077864,1745697046307,-536.73,0.00019864,2]
[359077865,1745697046318,-400.0,0.00019864,2]
[359077866,1745697046329,-400.0,0.00019864,2]
[359077867,1745697046340,-984.88,0.00019864,2]
[359077868,1745697046350,-723.92,0.00019864,2]
[359077869,1745697046365,-621.31,0.00019864,2]
[359077870,1745697046375,-400.0,0.00019864,2]
[359077871,1745697046385,-400.0,0.00019864,2]
[359077872,1745697046397,-631.9,0.00019864,2]
[359077873,1745697046407,-91466.96,0.00019864,2]
[359077874,1745697046417,-400.0,0.00019864,2]
[359077875,1745697046428,-3229.28,0.00019864,2]